Cogmind - Beta 16.1 @@@ ROGUE MODE // 2026.04.21 @ 04:40:58 Player: M4-TR4 Result: Destroyed by XB-6LC(R) with Subdweller Beam Cannon Performance ------------- Evolutions (0) 0 Regions Visited (2) 400 Robots Destroyed (23) 115 Value Destroyed (631) 631 Prototype IDs (0) 0 Alien Tech Used (0) 0 Bonus (0) 0 TOTAL SCORE: 1146 Bonus ------- None Cogmind --------- Core Integrity 0/250 Matter 185/300 Energy 200/200 System Corruption 0% Temperature Cool (9) Movement Walking (750) Ox9 Location -10/Subcaves Parts ------- > --- POWER (1) -------- Subdweller Power Source > --- PROPULSION (2) --- Aluminum Leg > --- UTILITY (2) ------ Huge Storage Unit > --- WEAPON (2) ------- Barrage Gun Makeshift Hammer > --- INVENTORY (25) --- Subdweller Power Source Compact Wheel Heat Sink Cooling System Cooling System Cooling System Large Storage Unit Seismic Detector Light Armor Plating Medium Laser Particle Gun Subdweller Laser Particle Cannon Light Assault Rifle Light Assault Rifle Light Assault Rifle Light Assault Rifle Battle Cannon Subdweller Shrapnel Launcher Mining Laser Peak State ------------ > --- POWER ------------ Subdweller Power Source > --- PROPULSION ------- Light Treads Light Treads > --- UTILITY ---------- Huge Storage Unit Makeshift Light Armor Plating > --- WEAPON ----------- Subdweller Machine Gun Barrage Gun > --- INVENTORY -------- Aluminum Leg Aluminum Leg Compact Wheel Heat Sink Cooling System Cooling System Cooling System Large Storage Unit Seismic Detector Light Armor Plating Medium Laser Particle Gun Subdweller Laser Particle Cannon Light Assault Rifle Light Assault Rifle Light Assault Rifle Light Assault Rifle Battle Cannon Subdweller Shrapnel Launcher Mining Laser Makeshift Hammer [Rating: 17] Favorites ----------- Power Subdweller Power Source Engine Subdweller Power Source Propulsion Light Treads Treads Light Treads Leg Aluminum Leg Utility Huge Storage Unit Device Heat Sink Storage Huge Storage Unit Protection Makeshift Light Armor Plating Weapon Subdweller Machine Gun Energy Gun Medium Laser Energy Cannon Particle Cannon Ballistic Gun Subdweller Machine Gun Ballistic Cannon Battle Cannon Launcher Subdweller Shrapnel Launcher Special Weapon Mining Laser Impact Weapon Makeshift Hammer Build | -11 -10 -10 ------- Run | Yrd Mat Sub Slots Evolved . | . . . Power . | . . . Propulsion . | . . . Utility . | . . . Weapon . | . . . Parts Attached 26 | 2 9 15 Power 5 | . 1 4 Engine 5 | . 1 4 Core . | . . . Reactor . | . . . Propulsion 4 | 2 . 2 Treads 2 | 2 . . Leg 2 | . . 2 Wheel . | . . . Hover . | . . . Flight . | . . . Utility 6 | . 4 2 Device 2 | . 1 1 Storage 3 | . 3 . Processor . | . . . Hackware . | . . . Protection 1 | . . 1 Artifact . | . . . Weapon 11 | . 4 7 Energy Gun 3 | . 1 2 Energy Cannon 1 | . 1 . Ballistic Gun 3 | . 1 2 Ballistic Cannon 1 | . . 1 Launcher 1 | . . 1 Special Weapon 1 | . 1 . Impact Weapon 1 | . . 1 Slashing Weapon . | . . . Piercing Weapon . | . . . Special Melee Weapon . | . . . Unidentified Prototypes . | . . . Parts Lost 7 | . . 7 Power 2 | . . 2 Propulsion 3 | . . 3 Utility 1 | . . 1 Weapon 1 | . . 1 Highest Loss Streak 3 | . . 3 To Critical Strikes 1 | . . 1 Average Backups 19 | 6 16 21 Power . | 1 1 . Propulsion 2 | 3 3 2 Utility 6 | . 5 6 Weapon 9 | 1 7 11 Tool/Special . | . . . Unused Backups 14 | . 4 10 Power . | . . . Propulsion . | . . . Utility 6 | . 2 4 Weapon 8 | . 2 6 Tool/Special . | . . . Average Slot Usage (%) 96 | . 99 94 Engine 13 | . 13 13 Treads 24 | . 27 22 Device 5 | . 13 . Storage 14 | . 14 14 Protection 8 | . . 12 Energy Gun 14 | . 22 9 Ballistic Gun 11 | . 3 16 Ballistic Cannon 1 | . . 1 Peak Build Rating 17 | 6 10 17 Average Rating 12 | 6 9 15 On Entrance 7 | 6 6 10 Avg Prop Armor Cover (%) . | . . . Naked Turns . | . . . Heaviest Build 101 | 13 92 101 Greatest Support 40 | 40 40 40 Greatest Overweight (x) 5 | . 2 5 Average Overweight (x) 1 | . 1 2 Largest Inventory Capacity 25 | 8 25 25 Average Capacity 23 | 8 21 25 Most Carried 24 | 7 20 24 Average Carried 19 | 6 16 21 Final Capacity 25 | 8 25 25 Final Carried 20 | 7 19 20 Class Distribution -------------------- 100% | Mutant Dominant Class ---------------- Mutant | -10/Materials Mutant | -10/Subcaves Resources | -11 -10 -10 ----------- Run | Yrd Mat Sub Matter Collected 665 | 235 82 348 Remotely . | . . . Salvage Created 933 | 129 284 520 Parts 56 | 12 21 23 Haulers Intercepted . | . . . Recyclers Shooed 1 | . 1 . Parts Field Recycled . | . . . Retrieved Matter . | . . . Parts Self-Destructed 4 | . . 4 Prevented . | . . . Parts Restored . | . . . Kills | -11 -10 -10 ------- Run | Yrd Mat Sub Combat Hostiles Destroyed 19 | . 9 10 Guns 14 | . 7 7 Cannons 2 | . 2 . AOE 3 | . . 3 Classes Destroyed 6 | 2 2 2 Tunneler 3 | 3 . . Recycler 1 | 1 . . Swarmer 5 | . 5 . Grunt 4 | . 4 . Sentry 1 | . . 1 Subdweller 9 | . . 9 Best Kill Streak 3 | 3 3 3 Combat Bots Only 3 | . 3 3 Max Kills in Single Turn 2 | 1 1 2 Gunslinging 1 | . . 1 Exploded 2 | . . 2 Melee . | . . . Uniques/NPCs Destroyed . | . . . Combat | -11 -10 -10 -------- Run | Yrd Mat Sub Hostile Shots Fired 93 | . 30 63 Missed 21 | . 11 10 Hits 72 | . 19 53 Projectile 72 | . 19 53 Critical Strikes 3 | . . 3 Damage Taken 1571 | . 210 1361 Core 273 | . 71 202 Absorbed by Shields . | . . . Core Remaining (%) 100 | 100 . . Volleys Fired 101 | 15 20 66 Largest 2 | 2 2 2 Hottest 118 | 70 118 115 Shots Fired 181 | 30 36 115 Gun 139 | 30 24 85 Cannon 36 | . 10 26 Launcher 4 | . . 4 Special 2 | . 2 . Kinetic 84 | 15 6 63 Thermal 97 | 15 30 52 Explosive . | . . . Electromagnetic . | . . . Robot Hit Streak 17 | 5 8 17 Robot Miss Streak 3 | 2 3 2 Penetration Max . | . . . Secondary Targets 2 | . 1 1 Max Gunslinging Chain 1 | . 1 1 Shots Hit Robots 91 | 16 20 55 Core Hits 41 | 5 12 24 Critical Kills 1 | . . 1 Critical Parts Destroyed 1 | . . 1 Critical Strikes 3 | . 1 2 Burn 1 | . 1 . Destroy 2 | . . 2 Melee Attacks 2 | . . 2 Impact 2 | . . 2 Slashing . | . . . Piercing . | . . . Sneak Attacks . | . . . Combat Hostiles . | . . . Follow-up Attacks . | . . . Damage Inflicted 1851 | 167 329 1355 Guns 1178 | 167 170 841 Cannons 211 | . 125 86 Explosions 344 | . . 344 Melee 84 | . . 84 Ramming 34 | . 34 . Kinetic 1007 | 105 19 883 Thermal 726 | 62 276 388 Explosive . | . . . Electromagnetic . | . . . Impact 84 | . . 84 Slashing . | . . . Piercing . | . . . Highest Corruption . | . . . Average Corruption . | . . . Corruption Purged . | . . . Corruption Blocked . | . . . Overload Shots . | . . . Overflow Damage . | . . . Projectiles . | . . . Explosions . | . . . Melee . | . . . Knockbacks 1 | . . 1 Impact . | . . . Kinetic 1 | . . 1 Secondary . | . . . Self-Inflicted Damage 83 | . . 83 Shots 2 | . . 2 Rammed 3 | . 3 . Targets Rammed 3 | . 3 . Kicked . | . . . Crushed . | . . . Highest Temperature 171 | 160 171 22 Average Temperature 55 | 71 48 7 Received Heat Transfer 258 | . 57 201 Siege Activations . | . . . Martial Activations . | . . . Shielding Activations . | . . . Robots Disrupted . | . . . Combat Hostiles . | . . . Robots Corrupted . | . . . Combat Hostiles . | . . . Parts Fried . | . . . Impact Corruptions . | . . . Robots Melted . | . . . Combat Hostiles . | . . . Parts Melted 2 | . 1 1 Heat Transferred 1729 | 185 740 804 Parts Sabotaged . | . . . Parts Stolen . | . . . Parts Stripped . | . . . Power Chain Reactions . | . . . Alert | -11 -10 -10 ------- Run | Yrd Mat Sub Maximum Alert Level . | . . . Low Security (%) 100 | 100 100 . Level 1 . | . . . Level 2 . | . . . Level 3 . | . . . Level 4 . | . . . Level 5 . | . . . High Security . | . . . Max Security . | . . . Peak Influence 80 | 10 80 . Initial . | . . . Average 9 | 1 10 . Influence Increases 252 | 20 212 20 Destroy 0b10 Robot/C 200 | . 180 20 Destroy 0b10 Robot/NC 20 | 20 . . Destroy Leader 30 | . 30 . Destroy Structure 2 | . 2 . Influence Decreases 252 | 20 212 20 Time Decay 252 | 20 212 20 Squads Dispatched 2 | . 2 . Investigation 1 | . 1 . Extermination . | . . . Reinforcement 1 | . 1 . Assault . | . . . Garrison . | . . . Intercept . | . . . Searches Triggered . | . . . Construction Impeded . | . . . Haulers Reinforced . | . . . Active Scanning Responses . | . . . Cargo Convoy Interrupts . | . . . Stealth | -11 -10 -10 --------- Run | Yrd Mat Sub Distress Signals 2 | . 2 . Communications Jammed . | . . . Distress Signals . | . . . Times Spotted 30 | . 19 11 Peak Tracking Total 5 | . 5 4 Tactical Retreats . | . . . Traps | -11 -10 -10 ------- Run | Yrd Mat Sub Traps Triggered 6 | . 3 3 Indirectly . | . . . Trap Hack Attempts . | . . . Triggered . | . . . Disarmed . | . . . Reprogrammed . | . . . Reused . | . . . Traps Extracted . | . . . Installed . | . . . Triggered . | . . . Machines | -11 -10 -10 ---------- Run | Yrd Mat Sub Machines Disabled . | . . . Max in Single Turn . | . . . Machines Repaired . | . . . Machines Dismantled . | . . . Machines Sabotaged . | . . . Overloaded Fab Kills . | . . . Hacking | -11 -10 -10 --------- Run | Yrd Mat Sub Machines Accessed 1 | . . 1 Terminals . | . . . Fabricators . | . . . Repair Stations . | . . . Recycling Units . | . . . Scanalyzers . | . . . Garrison Access . | . . . Total Hacks 3 | . . 3 Successful 3 | . . 3 Failed . | . . . Catastrophic . | . . . Database Lockouts . | . . . Manual . | . . . Terminals . | . . . Fabricators . | . . . Repair Stations . | . . . Recycling Units . | . . . Scanalyzers . | . . . Garrison Access . | . . . Terminal Hacks 3 | . . 3 Record 3 | . . 3 Fabricator Hacks . | . . . Repair Station Hacks . | . . . Recycling Unit Hacks . | . . . Scanalyzer . | . . . Garrison Access Hacks . | . . . Unauthorized Hacks . | . . . Terminals . | . . . Fabricators . | . . . Repair Stations . | . . . Recycling Units . | . . . Scanalyzers . | . . . Garrison Access . | . . . Data Cores Recovered . | . . . Used . | . . . Hacking Detections . | . . . Full Trace Events . | . . . Feedback Events . | . . . Feedback Blocked . | . . . Robot Schematics Acquired . | . . . Robots Built . | . . . Authchips . | . . . Time . | . . . Total Robot Build Rating . | . . . Part Schematics Acquired . | . . . Parts Built . | . . . Authchips . | . . . Time . | . . . Total Part Build Rating . | . . . Part Studies Acquired . | . . . Parts Repaired . | . . . Time . | . . . Parts Recycled . | . . . Recycled Matter . | . . . Retrieved Matter . | . . . Retrieved Components . | . . . Parts Scanalyzed . | . . . Part Schematics Acquired . | . . . Parts Damaged . | . . . Bothacking | -11 -10 -10 ------------ Run | Yrd Mat Sub Used RIF Installer . | . . . Robots Hacked . | . . . Non-combat . | . . . Combat . | . . . Robot Hacks Applied . | . . . Relay Couplers Released . | . . . Fabnet Peak Effective % . | . . . Robots Rewired . | . . . Allies Hacked . | . . . Hacks Repelled . | . . . Allies | -11 -10 -10 -------- Run | Yrd Mat Sub Total Allies . | . . . Largest Group . | . . . Highest-Rated Group . | . . . Highest-Rated Ally . | . . . Total Orders . | . . . Ally Attacks . | . . . Total Damage . | . . . Kills . | . . . Allies Corrupted . | . . . Allies Melted . | . . . Intel | -11 -10 -10 ------- Run | Yrd Mat Sub Active Infowar (turns) . | . . . Robot Analysis Total . | . . . Derelict Logs Recovered . | . . . Drone Launches . | . . . Drone Recoveries . | . . . Exploration | -11 -10 -10 ------------- Run | Yrd Mat Sub Turns Passed 4144 | 134 1489 2521 Spaces Moved 1177 | 23 531 623 Core . | . . . Treads 1147 | 9 531 607 Legs 30 | 14 . 16 Wheels . | . . . Hover . | . . . Flight . | . . . Fastest Speed 120 | 120 160 320 Average Speed 313 | 135 260 365 Slowest Speed 480 | 160 320 480 Overloaded Moves . | . . . Propulsion Burnouts . | . . . Robots Hopped . | . . . Potential Cave-ins 1 | . . 1 Cave-ins Triggered . | . . . Exploration Rate (%) 41 | 2 87 35 Regions Visited 2 Branch Regions 1 Pre-discovered Areas . | . . . Known Exits Taken . | . . . Unknown Exits Taken 2 | 1 1 . Scrap Searched 7 | . . 7 Spaces Dug 7 | . 2 5 Terrain Destroyed 57 | . 2 55 Melee . | . . . Projectile 7 | . 2 5 AOE 50 | . . 50 Terrain Rammed . | . . . Walls Destroyed . | . . . Machines Disabled . | . . . Actions | -11 -10 -10 --------- Run | Yrd Mat Sub Total 1438 | 98 595 745 Wait 90 | 56 8 26 Move 1175 | 22 530 623 Hop . | . . . Pick Up 26 | 2 16 8 Fast Attach 4 | . 3 1 Attach 5 | . . 5 Detach . | . . . Swap 20 | 2 8 10 Drop 12 | 1 7 4 Fire 101 | 15 20 66 Melee 2 | . . 2 Ram . | . . . Kick . | . . . Crush 3 | . 3 . Escape Stasis . | . . . Rewire . | . . . Trap . | . . . Miscellaneous . | . . . Route ------- -11/Scrapyard -10/Materials (discovered 5 exits: [*Mat x2] / [*Min x2] / *Sub) -10/Subcaves (discovered 1 exit: Rec) History --------- Turn | Location | Event 54 | -11/Scrapyard | Discovered new exit (range 2) 135 | -11/Scrapyard | Entered Materials 247 | -10/Materials | Discovered new exit (range 5) 300 | -10/Materials | Build established: Mutant 587 | -10/Materials | Discovered new exit (range 8) 787 | -10/Materials | Discovered new exit (range 6) 1046 | -10/Materials | Discovered new exit (range 14) 1052 | -10/Materials | Discovered new exit (range 12) 1624 | -10/Materials | Entered Subcaves 1654 | -10/Subcaves | Shifting Twisted Machinery released Mak. Light Armor Plating 2803 | -10/Subcaves | Shifting Twisted Machinery released Sub. Power Source 3049 | -10/Subcaves | Disturbed a concealed Subdweller 3209 | -10/Subcaves | Core integrity fell below 50% 3367 | -10/Subcaves | Visited Clippyterm 3381 | -10/Subcaves | Identified exit to Recycling 4028 | -10/Subcaves | Shifting Twisted Machinery released Flamer 4091 | -10/Subcaves | Shifting Twisted Machinery released Mak. System Shield 4123 | -10/Subcaves | Core integrity fell below 20% 4145 | -10/Subcaves | Destroyed by XB-6LC(R) with Subdweller Beam Cannon Last Messages --------------- 04049_ RH-TJU(R) destroyed. 04060_ Acquired 26 matter. 04062_ Subatomizers dissect the Sub. Optics. 04069_ Acquired 22 matter. 04088_ Subatomizers dissect the Sub. Optics. Mak. System Shield falls loose from the Twisted Machinery. 04101_ Subatomizers dissect the Sub. Optics. 04112_ Critical hit (Destroy). 04119_ Sub. Machine Gun destroyed. 04120_ Critical hit (Destroy). 04120_ Aluminum Leg destroyed. 04122_ WP-TVU(R) destroyed. 04122_ 8H-7C2(R) destroyed. 04124_ Subatomizers dissect the Sub. Optics. 04125_ XB-6LC(R) affixes Scrap Shield Fragment to Scrap Shield. 04125_ M8-TH8(R) affixes Scrap Shield Fragment to Scrap Shield. 04128_ M8-TH8(R) destroyed. 04128_ Mak. Light Armor Plating destroyed. 04128_ Destroyed Mak. Light Armor Plating. 04130_ XB-6LC(R) affixes Scrap Shield Fragment to Scrap Shield. Map ----- +----------------------------------------------------+ | ##?###???????? #?????????????????????????????????? | | ## ####????????????????????????????????????????? | | % % #????????????????????????????????????????? | | #?????????????????????????????????????????? | | ##?????????????????????????????????????????? | | #??????????????????????????????????????????? | | #??????????????????????????????????????????? | | ##??????????????????????????????????????????? | | # #???????????????????????????????????????????? | | ?# ###?????????????????????????????????????????? | | ?? ??????????????????????????????????????????? | | ?? ????????????????????????????????????????? | | #? ?????????????????????????????????????????? | | ? % #??????????????????????????????????????????? | | ?? #??????????????????????????????????????????? | | ??? ##??????????????#?#????????????????????????? | | ??? #?????????????" ""#???????????????????????? | | #??# ##????????????? """##?????????????????????? | | ### #????????????#"""" "?####????????????????? | | # #????????????##"""#; ##;; ##???????????????? | | " #?????>?????##""" ; ;; "##??????????????? | | " " ##??????????#" "| = ###;; ?????????? | | # " #?####?###?#"""""; ; ?????????? | | # """ ###" ### #?#"""" *& ????????? | | ##"""" # " ##?#""" !%* ;????????? | | ?### " ## # ####"" @ ;????????? | | ???# " ### #### R ????????? | | ???#" "" #?## # # %## ; ????????? | | ??#"" ""#??# " =&##### ;; #;;;?????????? | | ??#"" ##??#""# # ###????##;;;;;;#????????????? | | ??##### ##???#########?????????######????????????? | | ??????###????????????????????????????????????????? | | ?????????????????????????????????????????????????? | | ?????????????????????????????????????????????????? | | ?????????????????????????????????????????????????? | | ?????????????????????????????????????????????????? | | ?????????????????????????????????????????????????? | | ?????????????????????????????????????????????????? | | ?????????????????????????????????????????????????? | | ?????????????????????????????????????????????????? | | ?????????????????????????????????????????????????? | | ?????????????????????????????????????????????????? | | ?????????????????????????????????????????????????? | | ?????????????????????????????????????????????????? | | ?????????????????????????????????????????????????? | | ?????????????????????????????????????????????????? | | | | | | | | | +----------------------------------------------------+ Best States ------------- Heat Dissipation 47 Energy Generation 15 Energy Capacity 250 Matter Stores 300 Matter Capacity 300 Sight Range 16 Terrain Scan Density 10 Armor Coverage 100 Evasion (%) 55 Recoil Reduction 2 Item Schematics ----------------- None Robot Schematics ------------------ None Fabricated ------------ Nothing Repaired ---------- Nothing Studied --------- None Alien Tech Used ----------------- None Achievements -------------- None Challenges ------------ None Game ------ Seed BoreReflexOptics Manual? 0 Play Time 00:19:15 Cumulative 52.0 hours Start 2026.04.21 @ 04:20:32 End 2026.04.21 @ 04:40:58 Sessions 1 Manual Loads 0 Difficulty Rogue Special Mode None Game No. 30 Rogue 21 Adventurer 0 Explorer 9 Win Type - Total 2 Types 2/0/0/0/0/0/0/0/0/0 Lore% 29 Gallery% 35 Achievement% 39 Wizard Run 0 Options --------- Layout 0 ASCII 0 Keyboard 0 Movement Mouse Keybinds 0 Fullscreen 1 Font 18/SmallcapsGlow Map View 76x50 Zoom Use 0% Tactical HUD 1 Map Filters NONE Filters NONE Steam 1 RUN: bbfa818d-888f-4a46-8304-20b01602e1f5